Workbook

Sheet RUS Form 36
A1: USDA - RUS | E1: Title of Information Document | K1: OMB No.
E2: Distance Learning and Telemedicine | L2: 0572-0096
A3: SUMMARY OF INFORMATION COLLECTION | E3: Loan and Grant Program, 7 CFR 1734 - A, B, C, and D | K3: Date Prepared
K4: 2019
A5: INSTRUCTIONS: | G5: > | H5: (h) TOTAL | J5: (j) TOTAL | L5: (m) TOTAL
A6: Use this form when a single information collection document involves multiple reporting and | G6: > | H6: - | I6: = (e) Average | J6: - | K6: = (g) Average | L6: - | M6: = (j) Average
A7: recordkeeping requirements. | G7: > | H7: (f) TOTAL | J7: (h) TOTAL | L7: (k) TOTAL
A8: IDENTIFICATION OF REPORTING AND RECORDKEEPING REQUIREMENTS | I8: ANNUAL BURDEN
E9: FORM | H9: REPORTS | L9: RECORDS
E10: NO(s) | F10: NO. OF | G10: NO. OF | H10: TOTAL | I10: HOURS | J10: TOTAL | K10: NO. OF | L10: ANNUAL | M10: TOTAL
B11: SECTION OF | E11: (If "none" | F11: RESPON- | G11: RESPONSES | H11: ANNUAL | I11: PER | J11: HOURS | K11: RECORD- | L11: HOURS PER | M11: RECORD-
B12: REGULATIONS | D12: DESCRIPTION | E12: so state) | F12: DENTS | G12: PER | H12: RESPONSES | I12: RESPONSE | J12: (Col. f & g) | K12: KEEPERS | L12: RECORD- | M12: KEEPING
G13: RESPON- | H13: (Col. d & e) | L13: KEEPER | M13: HOURS
B14: (a) | G14: DENT | M14: (Col. i & j)
A15: Grants | B15: Combos | C15: Loans | D15: (b) | E15: (c) | F15: (d) | G15: (e) | H15: (f) | I15: (g) | J15: (h) | K15: (i) | L15: (j) | M15: (k)
D16: Items and Burden Hours Approved Under Other Dockets
A18: 1703.125(a) | B18: 1703.134(a) | C18: 1703.144(a) | D18: Application for Federal Assistance (OMB Control NO. 4040-0004) | E18: SF-424 | F18: 190 | G18: 1 | H18: 190 | I18: 0.75 | J18: =SUM(H18*I18) -> 142.5
A19: 1703.106(b)(1) | B19: 1703.106(b)(1) | C19: 1703.106(b)(1) | D19: Request for Advance or Reimbursement (OMB Control NO. 4040-0012) | E19: SF-270 | F19: 157 | G19: 3 | H19: =G19*F19 -> 471 | I19: 1.00 | J19: =SUM(H19*I19) -> 471 | K19: 350 | L19: 1.00 | M19: =SUM(K19*L19) -> 350.00
A20: 1703.108 | B20: 1703.108 | C20: 1703.108 | D20: Audit Report (OMB control NO. 0572-0095) | E20: None | F20: 76 | G20: 1 | H20: 76 | I20: 11.00 | J20: 836
D21: Assurance Regarding Felony Conviction or Tax Delinquent Status for Corporate Applicants (OMB Control NO. 0505-0025) | E21: AD 3030 | F21: 25 | G21: 1 | H21: 25 | I21: 0.25 | J21: 1.6
D22: Total Annual Row | H22: =SUM(H18:H21) -> 762 | J22: =SUM(J18:J21) -> 1,451
D25: Items Cleared Under THIS Collection Package
D26: Applicant Information
A27: 1703.125(b) | B27: 1703.134(b) | C27: 1703.144(b) | D27: Executive Summary | E27: None | F27: 190 | G27: 1 | H27: =G27*F27 -> 190 | I27: 2.20 | J27: =SUM(H27*I27) -> 418.00
A29: 1703.125(c) | D29: Scoring Criteria Documentation | E29: None | F29: 190 | G29: 1 | H29: =G29*F29 -> 190 | I29: 6.60 | J29: =SUM(H29*I29) -> 1,254.00
A31: 1703.125(d) | B31: 1703.134(c) | C31: 1703.144(c) | D31: Proposed Scope of Work | E31: None | F31: 190 | G31: 1 | H31: =G31*F31 -> 190 | I31: 1.10 | J31: =SUM(H31*I31) -> 209.00
A33: 1703.125(e) | B33: 1703.134(d) | C33: 1703.144(d) | D33: Financial Information | E33: None | F33: 190 | G33: 1 | H33: =G33*F33 -> 190 | I33: 2.20 | J33: =SUM(H33*I33) -> 418.00
A35: 1703.125(f) | B35: 1703.134(e) | C35: 1703.144(e) | D35: Statement of Experience | E35: None | F35: 190 | G35: 1 | H35: =G35*F35 -> 190 | I35: 0.55 | J35: =SUM(H35*I35) -> 104.50
A37: 1703.125(g) | D37: Funding Commitment from Other Sources | E37: None | F37: 190 | G37: 1 | H37: =G37*F37 -> 190 | I37: 0.55 | J37: =SUM(H37*I37) -> 104.50
A39: 1703.125(h) | B39: 1703.134(f) | C39: 1703.144(f) | D39: Telecommunications System Plan | E39: None | F39: 190 | G39: 1 | H39: =G39*F39 -> 190 | I39: 33.00 | J39: =SUM(H39*I39) -> 6,270.00
A41: 1703.125(i)(1) | B41: 1703.134(g)(1) | C41: 1703.144(g)(1) | D41: Equal Opportunity and Nondiscrimination Requirements | E41: None | F41: 190 | G41: 1 | H41: =G41*F41 -> 190 | I41: 0.10 | J41: =SUM(H41*I41) -> 19.00
A43: 1703.125(i)(2) | B43: 1703.134(g)(2) | C43: 1703.144(g)(2) | D43: Certification Regarding Architectural Barriers | E43: None | F43: 190 | G43: 1 | H43: =G43*F43 -> 190 | I43: 0.10 | J43: =SUM(H43*I43) -> 19.00
A45: 1703.125(i)(3) | B45: 1703.134(g)(3) | C45: 1703.144(g)(3) | D45: Certification Regarding Flood Hazard Areas | E45: None | F45: 190 | G45: 1 | H45: =G45*F45 -> 190 | I45: 0.10 | J45: =SUM(H45*I45) -> 19.00
A47: 1703.125(i)(4) | B47: 1703.134(g)(4) | C47: 1703.144(g)(4) | D47: Certification Regarding Uniform Relocation Assistance, etc. | E47: None | F47: 190 | G47: 1 | H47: =G47*F47 -> 190 | I47: 0.10 | J47: =SUM(H47*I47) -> 19.00
A49: 1703.125(i)(5) | B49: 1703.134(g)(5) | C49: 1703.144(g)(5) | D49: Certification Regarding Drug-Free Workplace | E49: AD1049 | F49: 190 | G49: 1 | H49: =G49*F49 -> 190 | I49: 0.25 | J49: =SUM(H49*I49) -> 47.50
D50: Approved under OMB 0505-0027-burden hours are accounted for in this collection package.)
A52: 1703.125(i)(6) | B52: 1703.134(g)(6) | C52: 1703.144(g)(6) | D52: Certification Regarding Debarment and Suspension | E52: AD-1047 | F52: 190 | G52: 1 | H52: =G52*F52 -> 190 | I52: 0.25 | J52: =SUM(H52*I52) -> 47.50
D53: Approved under OMB 0505-0027-burden hours are accounted for in this collection package.)
A55: 1703.125(i)(7) | B55: 1703.134(g)(7) | C55: 1703.144(g)(7) | D55: Certification Regarding Lobbying | E55: None | F55: 190 | G55: 1 | H55: =G55*F55 -> 190 | I55: 0.13 | J55: =SUM(H55*I55) -> 24.70
A57: 1703.125(b)(8) | B57: 1703.134(b)(8) | C57: 1703.144(b)(8) | D57: Non-Duplication of Services | E57: None | F57: 190 | G57: 1 | H57: =G57*F57 -> 190 | I57: 0.10 | J57: =SUM(H57*I57) -> 19.00
A59: 1703.125(j) | B59: 1703.134(h) | C59: 1703.144(h) | D59: Environmental Information | E59: None | F59: 190 | G59: 1 | H59: =G59*F59 -> 190 | I59: 0.50 | J59: =SUM(H59*I59) -> 95.00
A61: 1703.125(k) | B61: 1703.134(i) | C61: 1703.144(i) | D61: Evidence of Legal Existence and Authority | E61: None | F61: 190 | G61: 1 | H61: =G61*F61 -> 190 | I61: 0.25 | J61: =SUM(H61*I61) -> 47.50
A63: 1703.125(l) | B63: 1703.134(j) | C63: 1703.144(j) | D63: Federal Obligations Certification on Delinquent Debt | E63: None | F63: 190 | G63: 1 | H63: =G63*F63 -> 190 | I63: 0.50 | J63: =SUM(H63*I63) -> 95.00
A65: 1703.125(m) | D65: Consultation w/ State Director RE: Other Funding Sources | E65: None | F65: 190 | G65: 1 | H65: =G65*F65 -> 190 | I65: 1.65 | J65: =SUM(H65*I65) -> 313.50
A67: 1703.125(n) | D67: Consultation w/ State Director RE: State Strategic Plan | E67: None | F67: 190 | G67: 1 | H67: =G67*F67 -> 190 | I67: 0.50 | J67: =SUM(H67*I67) -> 95.00
D69: Recipient Information
A70: 1703.105(e) | B70: 1703.105(e) | C70: 1703.105(e) | D70: Updated Information for Preparing Legal Documents | E70: None | F70: 76 | G70: 1 | H70: =G70*F70 -> 76 | I70: 3.00 | J70: =SUM(H70*I70) -> 228.00 | K70: 100 | L70: 0.50 | M70: =SUM(K70*L70) -> 50.00
A72: 1703.105(e) | B72: 1703.105(e) | C72: 1703.105(e) | D72: Execution of Legal Documents | E72: None | F72: 76 | G72: 1 | H72: =G72*F72 -> 76 | I72: 1.00 | J72: =SUM(H72*I72) -> 76.00 | K72: 100 | L72: 1.00 | M72: =SUM(K72*L72) -> 100.00
A74: 1703.106(a) | B74: 1703.106(a) | C74: 1703.106(a) | D74: Evidence of Fidelity Bond Coverage | E74: None | F74: 76 | G74: 1 | H74: =G74*F74 -> 76 | I74: 0.50 | J74: =SUM(H74*I74) -> 38.00 | K74: 100 | L74: 0.50 | M74: =SUM(K74*L74) -> 50.00
A76: 1703.107(a) | B76: 1703.107(a) | C76: 1703.107(a) | D76: Project Performance Report | E76: None | F76: 76 | G76: 1 | H76: =G76*F76 -> 76 | I76: 4.00 | J76: 400.00 | K76: 100 | L76: 1.00 | M76: 100.00
D78: TOTAL | H78: =SUM(H27:H76) -> 4,104 | J78: =SUM(J27:J77) -> 10,380.70 | M78: =SUM(M18:M77) -> 650.00
H80: Reporting Burden | J80: =J78 -> 10,380.70
H81: Recordkeeping Burden | J81: =M78 -> 650.00
H82: Total Burden Hours | J82: =SUM(J80:J81) -> 11,030.70
